fUSD/lending_fUSD_20260510
["ID","MTS","AMOUNT","RATE_DAILY","PERIOD"]
[421954605,1778368232000,-336.70156738,0.00011999,2]
[421954606,1778368232000,-225.22804569,0.00011999,2]
[421954608,1778368232000,-27422.79361742,0.00012,2]
[421954603,1778368232000,-500.0,0.00011999,2]
[421954666,1778368238000,-411.91380021,0.00012573,2]
[421954644,1778368238000,-252.90716667,0.00012,2]
[421954653,1778368238000,-1306.18269041,0.00012329,2]
[421954654,1778368238000,-200.0,0.00012364,2]
[421954646,1778368238000,-48120.64,0.00012055,2]
[421954648,1778368238000,-168.31,0.00012148,2]
[421954650,1778368238000,-3735.07889771,0.00012233,2]
[421954649,1778368238000,-1746.82,0.00012199,2]
[421954652,1778368238000,-200.0,0.00012241,2]
[421954656,1778368238000,-1004.24206447,0.00012521,2]
[421954655,1778368238000,-1000.0,0.00012521,2]
[421954657,1778368238000,-1000.0,0.00012521,2]
[421954659,1778368238000,-40527.99130688,0.00012567,2]
[421954645,1778368238000,-200.0,0.00012,2]
[421954651,1778368238000,-40527.99130688,0.00012233,2]
[421954647,1778368238000,-200.0,0.0001212,2]
[421954638,1778368238000,-150.0,0.00012,2]
[421954635,1778368238000,-4159349.17202523,0.00012,2]
[421954660,1778368238000,-500.0,0.00012573,2]
[421954628,1778368238000,-500.0,0.00011999,2]
[421954627,1778368238000,-500.0,0.00011999,2]
[421954629,1778368238000,-500.0,0.00011999,2]
[421954630,1778368238000,-242.41428933,0.00011999,2]
[421954631,1778368238000,-18454.68860417,0.00012,2]
[421954632,1778368238000,-27128.50850731,0.00012,2]
[421954633,1778368238000,-380.52932165,0.00012,2]
[421954639,1778368238000,-173.4120625,0.00012,2]
[421954642,1778368238000,-157.52174222,0.00012,2]
[421954634,1778368238000,-449.3404125,0.00012,2]
[421954640,1778368238000,-248.94301125,0.00012,2]
[421954636,1778368238000,-234.66951995,0.00012,2]
[421954641,1778368238000,-266.69127012,0.00012,2]
[421954637,1778368238000,-205.77084112,0.00012,2]
[421954643,1778368238000,-150.0,0.00012,2]
[421954658,1778368238000,-3735.07889771,0.00012567,2]
[421954679,1778368238000,-5407.14418242,0.0001305,2]
[421954667,1778368238000,-410.59034972,0.00012573,2]
[421954684,1778368238000,-211.6337643,0.00013121,2]
[421954687,1778368238000,-1000.0,0.00013121,2]
[421954685,1778368238000,-818.0461773,0.00013121,2]
[421954686,1778368238000,-723.89079662,0.00013121,2]
[421954694,1778368238000,-500.0,0.000135,2]
[421954688,1778368238000,-3735.07889771,0.00013233,2]
[421954683,1778368238000,-1680.0,0.00013089,2]
[421954689,1778368238000,-40527.99130688,0.00013233,2]
[421954690,1778368238000,-284.67781173,0.00013373,2]
[421954693,1778368238000,-500.0,0.000135,2]
[421954691,1778368238000,-37100.02115669,0.000134,2]
[421954695,1778368238000,-500.0,0.000135,2]
[421954696,1778368238000,-500.0,0.000135,2]
[421954661,1778368238000,-501.20580732,0.00012573,2]
[421954692,1778368238000,-500.0,0.00013494,2]
[421954681,1778368238000,-1500.0,0.00013068,2]
[421954697,1778368238000,-500.0,0.000135,2]
[421954680,1778368238000,-1500.0,0.00013068,2]
[421954682,1778368238000,-160.23,0.00013086,2]
[421954664,1778368238000,-500.26033627,0.00012573,2]
[421954663,1778368238000,-164.93935509,0.00012573,2]
[421954665,1778368238000,-500.31228504,0.00012573,2]
[421954669,1778368238000,-500.0,0.00012573,2]
[421954672,1778368238000,-174.47,0.00012676,2]
[421954673,1778368238000,-1306.18269041,0.00012757,2]
[421954668,1778368238000,-168.24561221,0.00012573,2]
[421954671,1778368238000,-500.0,0.00012573,2]
[421954678,1778368238000,-5169.04194623,0.00013,2]
[421954670,1778368238000,-500.0,0.00012573,2]
[421954674,1778368238000,-500.0,0.00012847,2]
[421954662,1778368238000,-502.21907443,0.00012573,2]
[421954677,1778368238000,-433.0,0.0001297,2]
[421954675,1778368238000,-3735.07889771,0.000129,2]
[421954676,1778368238000,-40527.99130688,0.000129,2]
[421954727,1778368239000,-3735.07889771,0.00013567,2]
[421954744,1778368239000,-500.0,0.00013699,2]
[421954742,1778368239000,-500.0,0.00013699,2]
[421954739,1778368239000,-9327.46,0.00013699,2]
[421954747,1778368239000,-500.0,0.00013699,2]
[421954735,1778368239000,-500.0,0.00013698,2]
[421954737,1778368239000,-500.0,0.00013698,2]
[421954746,1778368239000,-500.0,0.00013699,2]
[421954736,1778368239000,-500.0,0.00013698,2]
[421954734,1778368239000,-500.0,0.00013698,2]
[421954728,1778368239000,-40527.99130688,0.00013567,2]
[421954743,1778368239000,-500.0,0.00013699,2]
[421954740,1778368239000,-1000.0,0.00013699,2]
[421954738,1778368239000,-509.86538559,0.00013698,2]
[421954749,1778368239000,-500.0,0.00013699,2]
[421954741,1778368239000,-500.0,0.00013699,2]
[421954748,1778368239000,-500.0,0.00013699,2]
[421954750,1778368239000,-500.0,0.00013699,2]
[421954758,1778368239000,-500.0,0.00013699,2]
[421954759,1778368239000,-500.0,0.00013699,2]
[421954760,1778368239000,-500.0,0.00013699,2]
[421954751,1778368239000,-464.09886071,0.00013699,2]
[421954761,1778368239000,-500.0,0.00013699,2]
[421954753,1778368239000,-500.0,0.00013699,2]
[421954756,1778368239000,-500.0,0.00013699,2]
[421954755,1778368239000,-500.0,0.00013699,2]
[421954757,1778368239000,-500.0,0.00013699,2]
[421954754,1778368239000,-500.0,0.00013699,2]
[421954731,1778368239000,-2000.0,0.00013616,2]
[421954745,1778368239000,-500.0,0.00013699,2]
[421954725,1778368239000,-500.0,0.000135,2]
[421954713,1778368239000,-500.0,0.000135,2]
[421954729,1778368239000,-152.0,0.00013589,2]
[421954706,1778368239000,-500.0,0.000135,2]
[421954705,1778368239000,-151.0,0.000135,2]
[421954707,1778368239000,-500.0,0.000135,2]
[421954701,1778368239000,-500.0,0.000135,2]
[421954699,1778368239000,-151.0,0.000135,2]
[421954700,1778368239000,-500.0,0.000135,2]
[421954702,1778368239000,-151.0,0.000135,2]
[421954704,1778368239000,-500.0,0.000135,2]
[421954698,1778368239000,-500.0,0.000135,2]
[421954703,1778368239000,-500.0,0.000135,2]
[421954708,1778368239000,-151.0,0.000135,2]
[421954718,1778368239000,-151.0,0.000135,2]
[421954709,1778368239000,-500.0,0.000135,2]
[421954719,1778368239000,-500.0,0.000135,2]
[421954730,1778368239000,-2000.0,0.00013616,2]
[421954710,1778368239000,-500.0,0.000135,2]
[421954712,1778368239000,-500.0,0.000135,2]
[421954752,1778368239000,-500.0,0.00013699,2]
[421954711,1778368239000,-151.0,0.000135,2]
[421954717,1778368239000,-500.0,0.000135,2]
[421954716,1778368239000,-151.0,0.000135,2]
[421954715,1778368239000,-500.0,0.000135,2]
[421954720,1778368239000,-151.0,0.000135,2]
[421954722,1778368239000,-151.0,0.000135,2]
[421954732,1778368239000,-369.17599239,0.00013668,2]
[421954733,1778368239000,-500.0,0.00013698,2]
[421954723,1778368239000,-151.0,0.000135,2]
[421954721,1778368239000,-500.0,0.000135,2]
[421954724,1778368239000,-500.0,0.000135,2]
[421954726,1778368239000,-2080.17592889,0.000135,2]
[421954714,1778368239000,-151.0,0.000135,2]
[421954763,1778368239000,-500.0,0.00013699,2]
[421954805,1778368239000,-509.18251914,0.000155,2]
[421954771,1778368239000,-2500.0,0.00014164,2]
[421954797,1778368239000,-282.29,0.00015,2]
[421954798,1778368239000,-2319.72410669,0.00015144,2]
[421954801,1778368239000,-1445.7,0.00015377,2]
[421954803,1778368239000,-461.66564995,0.000155,2]
[421954813,1778368239000,-1445.7,0.0001653,2]
[421954802,1778368239000,-268.59751335,0.000155,2]
[421954808,1778368239000,-1445.7,0.00015762,2]
[421954806,1778368239000,-971.37,0.00015625,2]
[421954804,1778368239000,-500.51375305,0.000155,2]
[421954809,1778368239000,-1445.7,0.00016146,2]
[421954807,1778368239000,-2405.55389864,0.00015692,2]
[421954811,1778368239000,-971.37,0.00016335,2]
[421954810,1778368239000,-2494.55939289,0.0001624,2]
[421954812,1778368239000,-500.0,0.00016438,2]
[421954796,1778368239000,-5591710.31924702,0.00015,2]
[421954815,1778368239000,-166.66,0.00016603,2]
[421954827,1778368239000,-150.99,0.00016922,2]
[421954816,1778368239000,-1746.82,0.00016773,2]
[421954826,1778368239000,-447.07,0.00016922,2]
[421954814,1778368239000,-300.0,0.00016599,2]
[421954817,1778368239000,-1474.53402986,0.00016788,2]
[421954819,1778368239000,-9999.99,0.00016922,2]
[421954818,1778368239000,-1445.7,0.00016915,2]
[421954820,1778368239000,-3549.14,0.00016922,2]
[421954821,1778368239000,-9999.99,0.00016922,2]
[421954823,1778368239000,-24999.99,0.00016922,2]
[421954824,1778368239000,-9999.99,0.00016922,2]
[421954829,1778368239000,-166.66,0.00016953,2]
[421954828,1778368239000,-299.99,0.00016922,4]
[421954765,1778368239000,-250.0,0.00013863,2]
[421954825,1778368239000,-4354.16,0.00016922,2]
[421954795,1778368239000,-666.0,0.00014999,2]
[421954822,1778368239000,-362.27,0.00016922,2]
[421954791,1778368239000,-300.0,0.00014999,2]
[421954792,1778368239000,-666.0,0.00014999,2]
[421954766,1778368239000,-3735.07889771,0.000139,2]
[421954768,1778368239000,-29628.85404582,0.0001399,2]
[421954767,1778368239000,-40527.99130688,0.000139,2]
[421954764,1778368239000,-1746.82,0.00013723,2]
[421954772,1778368239000,-2904.33,0.00014191,2]
[421954770,1778368239000,-1983.7392912,0.00014164,2]
[421954769,1778368239000,-2157.14243826,0.00014048,2]
[421954773,1778368239000,-971.37,0.00014204,2]
[421954776,1778368239000,-40527.99130688,0.00014233,2]
[421954777,1778368239000,-1563.0,0.00014398,2]
[421954785,1778368239000,-3735.07889771,0.000149,2]
[421954786,1778368239000,-40527.99130688,0.000149,2]
[421954774,1778368239000,-736.0,0.00014222,2]
[421954783,1778368239000,-160.23,0.00014793,2]
[421954762,1778368239000,-500.0,0.00013699,2]
[421954775,1778368239000,-3735.07889771,0.00014233,2]
[421954779,1778368239000,-40527.99130688,0.00014567,2]
[421954788,1778368239000,-471.67170164,0.00014973,2]
[421954800,1778368239000,-1746.82,0.00015248,2]
[421954793,1778368239000,-300.0,0.00014999,2]
[421954790,1778368239000,-666.0,0.00014999,2]
[421954789,1778368239000,-300.0,0.00014999,2]
[421954794,1778368239000,-300.0,0.00014999,2]
[421954780,1778368239000,-2236.95670848,0.00014596,2]
[421954784,1778368239000,-11868.72620715,0.00014899,2]
[421954778,1778368239000,-3735.07889771,0.00014567,2]
[421954787,1778368239000,-971.37,0.00014915,2]
[421954799,1778368239000,-500.0,0.0001523,2]
[421954782,1778368239000,-596.88637021,0.00014712,2]
[421954781,1778368239000,-1590.875,0.000147,2]
[421954875,1778368240000,-164.24,0.00021446,2]
[421954863,1778368240000,-164.88,0.00020486,2]
[421954864,1778368240000,-200.0,0.00020549,2]
[421954872,1778368240000,-200.0,0.00021302,2]
[421954860,1778368240000,-537.1048019,0.0002,7]
[421954865,1778368240000,-500.0,0.00020565,2]
[421954874,1778368240000,-971.37,0.00021307,2]
[421954867,1778368240000,-1000.0,0.0002078,2]
[421954869,1778368240000,-193.01,0.00021138,2]
[421954868,1778368240000,-435.0,0.00021,2]
[421954870,1778368240000,-540.44308323,0.00021167,15]
[421954862,1778368240000,-2738.66,0.00020481,2]
[421954866,1778368240000,-971.37,0.00020596,2]
[421954882,1778368240000,-408.0,0.00021729,2]
[421954876,1778368240000,-282.29,0.000215,2]
[421954877,1778368240000,-153.45817241,0.000216,2]
[421954879,1778368240000,-153.45817239,0.000216,2]
[421954878,1778368240000,-153.45817239,0.000216,2]
[421954881,1778368240000,-410.0,0.00021729,2]
[421954886,1778368240000,-399.0,0.00021729,2]
[421954883,1778368240000,-398.0,0.00021729,2]
[421954887,1778368240000,-411.0,0.00021729,2]
[421954885,1778368240000,-399.0,0.00021729,2]
[421954884,1778368240000,-413.0,0.00021729,2]
[421954857,1778368240000,-435.0,0.0002,2]
[421954890,1778368240000,-500.0,0.00021897,2]
[421954880,1778368240000,-402.0,0.00021729,2]
[421954855,1778368240000,-492.6350223,0.0001955,2]
[421954841,1778368240000,-166.66,0.00018002,2]
[421954856,1778368240000,-971.37,0.00019886,2]
[421954891,1778368240000,-500.0,0.00021897,2]
[421954830,1778368240000,-1000.0,0.00016986,2]
[421954836,1778368240000,-850.0,0.00017533,2]
[421954832,1778368240000,-160.22,0.00017069,2]
[421954835,1778368240000,-850.0,0.00017533,2]
[421954833,1778368240000,-166.66,0.00017302,2]
[421954831,1778368240000,-971.37,0.00017045,2]
[421954837,1778368240000,-660.0,0.00017533,2]
[421954839,1778368240000,-403.0,0.000177,5]
[421954838,1778368240000,-166.66,0.00017652,2]
[421954840,1778368240000,-971.37,0.00017756,2]
[421954845,1778368240000,-971.37,0.00018466,2]
[421954858,1778368240000,-32930.47023073,0.0002,2]
[421954849,1778368240000,-250.0,0.00019064,2]
[421954847,1778368240000,-250.0,0.00019064,2]
[421954842,1778368240000,-1746.82,0.00018298,2]
[421954848,1778368240000,-250.0,0.00019064,2]
[421954843,1778368240000,-166.66,0.00018351,2]
[421954846,1778368240000,-250.0,0.00019064,2]
[421954851,1778368240000,-250.0,0.00019064,2]
[421954861,1778368240000,-151.0,0.00020381,2]
[421954852,1778368240000,-250.0,0.00019064,2]
[421954850,1778368240000,-250.0,0.00019064,2]
[421954853,1778368240000,-327.0,0.00019064,2]
[421954854,1778368240000,-971.37,0.00019176,2]
[421954859,1778368240000,-2983.08923867,0.0002,7]
[421954844,1778368240000,-151.0,0.0001841,2]
[421954888,1778368240000,-500.0,0.00021897,2]
[421954834,1778368240000,-850.0,0.00017533,2]
[421954889,1778368240000,-500.0,0.00021897,2]
[421954922,1778368240000,-500.0,0.00022072,2]
[421954925,1778368240000,-413.0,0.00022136,2]
[421954924,1778368240000,-4657.2932,0.00022072,2]
[421954935,1778368240000,-500.0,0.00022171,2]
[421954934,1778368240000,-500.0,0.00022171,2]
[421954927,1778368240000,-301.64693418,0.00022162,2]
[421954931,1778368240000,-500.0,0.00022171,2]
[421954930,1778368240000,-500.0,0.00022171,2]
[421954929,1778368240000,-500.0,0.00022171,2]
[421954926,1778368240000,-2128.0,0.00022137,2]
[421954928,1778368240000,-151.0,0.00022169,2]
[421954933,1778368240000,-500.0,0.00022171,2]
[421954921,1778368240000,-792.79213034,0.00022072,2]
[421954932,1778368240000,-500.0,0.00022171,2]
[421954940,1778368240000,-500.0,0.00022171,2]
[421954937,1778368240000,-500.0,0.00022171,2]
[421954936,1778368240000,-500.0,0.00022171,2]
[421954947,1778368240000,-500.0,0.00022171,2]
[421954938,1778368240000,-500.0,0.00022171,2]
[421954939,1778368240000,-500.0,0.00022171,2]
[421954942,1778368240000,-500.0,0.00022171,2]
[421954946,1778368240000,-500.0,0.00022171,2]
[421954941,1778368240000,-500.0,0.00022171,2]
[421954945,1778368240000,-500.0,0.00022171,2]
[421954943,1778368240000,-500.0,0.00022171,2]
[421954948,1778368240000,-500.0,0.00022171,2]
[421954944,1778368240000,-515.31571853,0.00022171,2]
[421954920,1778368240000,-300.0,0.00022071,2]
[421954949,1778368240000,-300.0,0.00022171,2]
[421954919,1778368240000,-160.77743921,0.00022061,2]
[421954918,1778368240000,-971.37,0.00022017,2]
[421954892,1778368240000,-500.0,0.00021897,2]
[421954894,1778368240000,-500.0,0.00021897,2]
[421954899,1778368240000,-500.0,0.00021897,2]
[421954897,1778368240000,-500.0,0.00021897,2]
[421954896,1778368240000,-500.0,0.00021897,2]
[421954895,1778368240000,-500.0,0.00021897,2]
[421954898,1778368240000,-456.80933954,0.00021897,2]
[421954911,1778368240000,-500.0,0.00021897,2]
[421954908,1778368240000,-500.0,0.00021897,2]
[421954902,1778368240000,-500.0,0.00021897,2]
[421954900,1778368240000,-500.0,0.00021897,2]
[421954903,1778368240000,-500.0,0.00021897,2]
[421954893,1778368240000,-500.0,0.00021897,2]
[421954901,1778368240000,-500.0,0.00021897,2]
[421954916,1778368240000,-7336.0,0.00022,2]
[421954917,1778368240000,-435.0,0.00022,2]
[421954923,1778368240000,-10266.7191,0.00022072,2]
[421954915,1778368240000,-5000.0,0.00021918,2]
[421954905,1778368240000,-500.0,0.00021897,2]
[421954914,1778368240000,-219.19126393,0.00021897,2]
[421954912,1778368240000,-500.0,0.00021897,2]
[421954909,1778368240000,-500.0,0.00021897,2]
[421954910,1778368240000,-199.9293781,0.00021897,2]
[421954906,1778368240000,-500.0,0.00021897,2]
[421954904,1778368240000,-500.0,0.00021897,2]
[421954907,1778368240000,-500.0,0.00021897,2]
[421954913,1778368240000,-297.77652657,0.00021897,2]
[421954993,1778368241000,-286.76,0.00023894,2]
[421954995,1778368241000,-193.93819873,0.00024048,21]
[421954994,1778368241000,-435.0,0.00024,2]
[421954984,1778368241000,-510.23889792,0.00023163,2]
[421954972,1778368241000,-151.0,0.00022353,2]
[421954985,1778368241000,-150.0,0.00023163,2]
[421954981,1778368241000,-150.0,0.00023163,2]
[421954978,1778368241000,-500.0,0.00023163,2]
[421954975,1778368241000,-500.0,0.00023163,2]
[421954986,1778368241000,-150.0,0.00023163,2]
[421954988,1778368241000,-247.71841965,0.00023163,2]
[421954997,1778368241000,-320.18,0.00024174,2]
[421954991,1778368241000,-971.37,0.00023437,2]
[421954990,1778368241000,-150.0,0.00023424,21]
[421954992,1778368241000,-182.63654604,0.00023588,2]
[421954989,1778368241000,-507.11882834,0.00023163,2]
[421954980,1778368241000,-504.37215118,0.00023163,2]
[421955000,1778368241000,-480.03,0.00024174,2]
[421955007,1778368241000,-1625.76,0.00024658,2]
[421954996,1778368241000,-971.37,0.00024148,2]
[421954999,1778368241000,-261.61,0.00024174,2]
[421954998,1778368241000,-156.13,0.00024174,2]
[421955001,1778368241000,-1494.16,0.00024174,2]
[421955005,1778368241000,-503.0,0.00024397,2]
[421955003,1778368241000,-238.97,0.00024351,2]
[421954987,1778368241000,-500.0,0.00023163,2]
[421954983,1778368241000,-150.0,0.00023163,2]
[421954970,1778368241000,-409.0,0.00022172,2]
[421954973,1778368241000,-971.37,0.00022727,2]
[421955004,1778368241000,-503.0,0.00024397,2]
[421954954,1778368241000,-208.261282,0.00022172,2]
[421954950,1778368241000,-151.0,0.00022172,2]
[421954952,1778368241000,-208.261282,0.00022172,2]
[421954955,1778368241000,-151.0,0.00022172,2]
[421954956,1778368241000,-151.0,0.00022172,2]
[421954958,1778368241000,-151.0,0.00022172,2]
[421954957,1778368241000,-151.0,0.00022172,2]
[421954953,1778368241000,-208.261282,0.00022172,2]
[421954951,1778368241000,-208.261282,0.00022172,2]
[421954959,1778368241000,-151.0,0.00022172,2]
[421954961,1778368241000,-151.0,0.00022172,2]
[421954971,1778368241000,-403.0,0.00022172,2]
[421954960,1778368241000,-151.0,0.00022172,2]
[421954963,1778368241000,-299.308539,0.00022172,2]
[421954966,1778368241000,-151.0,0.00022172,2]
[421954969,1778368241000,-401.0,0.00022172,2]
[421954967,1778368241000,-151.0,0.00022172,2]
[421954964,1778368241000,-299.308539,0.00022172,2]
[421954965,1778368241000,-299.308539,0.00022172,2]
[421954968,1778368241000,-151.0,0.00022172,2]
[421954979,1778368241000,-500.0,0.00023163,2]
[421954974,1778368241000,-435.0,0.00023,2]
[421954982,1778368241000,-500.0,0.00023163,2]
[421954977,1778368241000,-500.0,0.00023163,2]
[421954976,1778368241000,-500.0,0.00023163,2]
[421954962,1778368241000,-299.308539,0.00022172,2]
[421955002,1778368241000,-151.0,0.00024324,2]
[421955008,1778368241000,-152.72,0.00024658,2]
[421955034,1778368241000,-1625.76,0.00026099,7]
[421955037,1778368241000,-971.37,0.00026278,2]
[421955043,1778368241000,-2066.61378429,0.0002683,2]
[421955046,1778368241000,-1202.89117496,0.00026845,2]
[421955047,1778368241000,-150.0,0.00026849,2]
[421955050,1778368241000,-971.37,0.00026988,2]
[421955048,1778368241000,-150.0,0.00026868,2]
[421955051,1778368241000,-503.0,0.00027088,4]
[421955042,1778368241000,-1625.76,0.0002682,2]
[421955044,1778368241000,-182.99162514,0.0002683,2]
[421955052,1778368241000,-282.29,0.000271,7]
[421955045,1778368241000,-13536.34234308,0.0002683,2]
[421955049,1778368241000,-1625.76,0.00026964,7]
[421955054,1778368241000,-162.93,0.00027139,2]
[421955053,1778368241000,-1625.76,0.00027108,30]
[421955055,1778368241000,-162.93,0.00027139,7]
[421955059,1778368241000,-162.93,0.00027139,30]
[421955057,1778368241000,-162.93,0.00027139,2]
[421955061,1778368241000,-162.96,0.00027139,7]
[421955058,1778368241000,-162.93,0.00027139,7]
[421955056,1778368241000,-162.93,0.00027139,30]
[421955060,1778368241000,-162.93,0.00027139,2]
[421955062,1778368241000,-165.45,0.00027152,2]
[421955063,1778368241000,-165.45,0.00027152,7]
[421955006,1778368241000,-1000.0,0.00024658,2]
[421955032,1778368241000,-1625.76,0.00025955,2]
[421955035,1778368241000,-503.0,0.00026191,3]
[421955041,1778368241000,-1625.76,0.00026676,30]
[421955031,1778368241000,-1625.76,0.00025811,30]
[421955009,1778368241000,-150.4,0.00024658,2]
[421955038,1778368241000,-151.0,0.00026296,2]
[421955012,1778368241000,-152.72,0.00024886,7]
[421955014,1778368241000,-1625.76,0.00024946,30]
[421955011,1778368241000,-971.37,0.00024858,2]
[421955010,1778368241000,-1625.76,0.00024802,7]
[421955015,1778368241000,-437.0,0.00025,2]
[421955013,1778368241000,-150.4,0.00024886,7]
[421955018,1778368241000,-282.29,0.000252,7]
[421955017,1778368241000,-152.72,0.00025114,30]
[421955019,1778368241000,-1625.76,0.00025234,7]
[421955020,1778368241000,-503.0,0.00025294,2]
[421955021,1778368241000,-792.79213028,0.00025353,2]
[421955016,1778368241000,-1625.76,0.0002509,2]
[421955033,1778368241000,-193.93819873,0.0002598,21]
[421955036,1778368241000,-1625.76,0.00026243,30]
[421955024,1778368241000,-971.37,0.00025568,2]
[421955030,1778368241000,-1494.16,0.00025786,2]
[421955028,1778368241000,-261.61,0.00025786,2]
[421955040,1778368241000,-1625.76,0.00026532,7]
[421955029,1778368241000,-480.03,0.00025786,2]
[421955039,1778368241000,-1625.76,0.00026388,2]
[421955027,1778368241000,-156.13,0.00025786,2]
[421955026,1778368241000,-320.18,0.00025786,2]
[421955022,1778368241000,-1625.76,0.00025378,30]
[421955023,1778368241000,-1625.76,0.00025523,2]
[421955025,1778368241000,-1625.76,0.00025667,7]
[421955102,1778368242000,-12181.92,0.00027397,10]
[421955112,1778368242000,-2265.8607807,0.00028,60]
[421955103,1778368242000,-10151.6,0.00027397,10]
[421955111,1778368242000,-503.0,0.00027985,5]
[421955096,1778368242000,-1500.0,0.00027397,2]
[421955095,1778368242000,-150.0,0.00027397,2]
[421955097,1778368242000,-1008.89,0.00027397,2]
[421955101,1778368242000,-1000.0,0.00027397,20]
[421955098,1778368242000,-151.0,0.00027397,2]
[421955099,1778368242000,-300.0,0.00027397,2]
[421955113,1778368242000,-208.0536425,0.00028,30]
[421955100,1778368242000,-151.0,0.00027397,2]
[421955108,1778368242000,-683.78,0.000277,14]
[421955120,1778368242000,-792.79213028,0.00028634,2]
[421955110,1778368242000,-500.0,0.000278,7]
[421955104,1778368242000,-401.34,0.000275,2]
[421955105,1778368242000,-401.0,0.00027645,2]
[421955106,1778368242000,-167.01,0.000277,7]
[421955125,1778368242000,-503.0,0.00029778,7]
[421955115,1778368242000,-437.4,0.00028077,2]
[421955114,1778368242000,-150.18,0.00028,2]
[421955116,1778368242000,-2500.0,0.0002815,120]
[421955118,1778368242000,-151.0,0.00028267,2]
[421955119,1778368242000,-404.0,0.00028502,2]
[421955117,1778368242000,-150.0,0.00028192,2]
[421955093,1778368242000,-150.0,0.00027397,2]
[421955107,1778368242000,-191.69,0.000277,7]
[421955091,1778368242000,-579.39906451,0.00027334,29]
[421955064,1778368242000,-165.45,0.00027152,30]
[421955094,1778368242000,-209.47586133,0.00027397,2]
[421955121,1778368242000,-1332.09768977,0.00028646,15]
[421955066,1778368242000,-165.45,0.00027152,7]
[421955068,1778368242000,-165.45,0.00027152,2]
[421955076,1778368242000,-1083.84,0.00027186,2]
[421955067,1778368242000,-165.45,0.00027152,30]
[421955069,1778368242000,-165.47,0.00027152,7]
[421955065,1778368242000,-165.45,0.00027152,2]
[421955070,1778368242000,-1083.84,0.00027186,2]
[421955075,1778368242000,-1083.84,0.00027186,30]
[421955072,1778368242000,-1083.84,0.00027186,30]
[421955074,1778368242000,-1083.84,0.00027186,7]
[421955071,1778368242000,-1083.84,0.00027186,7]
[421955073,1778368242000,-1083.84,0.00027186,2]
[421955078,1778368242000,-1083.84,0.00027186,30]
[421955088,1778368242000,-1083.84,0.00027186,2]
[421955089,1778368242000,-1083.9,0.00027186,7]
[421955090,1778368242000,-1625.76,0.00027253,2]
[421955079,1778368242000,-1083.84,0.00027186,2]
[421955083,1778368242000,-1083.84,0.00027186,7]
[421955085,1778368242000,-1083.84,0.00027186,2]
[421955082,1778368242000,-1083.84,0.00027186,2]
[421955084,1778368242000,-1083.84,0.00027186,30]
[421955081,1778368242000,-1083.84,0.00027186,30]
[421955080,1778368242000,-1083.84,0.00027186,7]
[421955077,1778368242000,-1083.84,0.00027186,7]
[421955086,1778368242000,-1083.84,0.00027186,7]
[421955087,1778368242000,-1083.84,0.00027186,30]
[421955092,1778368242000,-1625.86,0.00027397,7]
[421955124,1778368242000,-150.0,0.00029601,2]
[421955109,1778368242000,-611.52,0.000277,7]
[421955123,1778368242000,-398.0,0.00029238,2]